Cogmind - Beta 12 @@@ ROGUE MODE // 2023.06.26 @ 22:52:44 Player: PionFour Result: Destroyed by 5O-C87(g) with Beamcaster Performance ------------- Evolutions (3) 1500 Regions Visited (10) 2000 Robots Destroyed (86) 430 Value Destroyed (2796) 2796 Prototype IDs (8) 160 Alien Tech Used (0) 0 Bonus (400) 400 TOTAL SCORE: 7286 Bonus ------- High Alert Combat Kills 30 Follower Combat Kills 70 Aligned with FarCom 300 Cogmind --------- Core Integrity 0/700 Matter 237/300 Energy 200/200 System Corruption 0% Temperature Cool (9) Movement Hovering (42) Location -7/Lower Caves Parts ------- > --- POWER (2) -------- Micro Nuclear Core Micro Nuclear Core > --- PROPULSION (3) --- Improved Airjet Cooled Airjet Cooled Airjet > --- UTILITY (5) ------ Improved Melee Analysis Suite Improved Melee Analysis Suite Core Analyzer > --- WEAPON (3) ------- Power Maul Spear Spear > --- INVENTORY (5) ---- Improved Airjet Advanced ECM Suite System Restoration Module Heavy Missile Launcher Peak State ------------ > --- POWER ------------ Micro Nuclear Core Micro Nuclear Core > --- PROPULSION ------- Gravmag System Cooled Airjet Cooled Airjet > --- UTILITY ---------- Structural Scanner Improved Melee Analysis Suite Improved Melee Analysis Suite Core Analyzer System Restoration Module > --- WEAPON ----------- Power Maul Spear Spear > --- INVENTORY -------- Gravmag System Gravmag System Improved Airjet Advanced ECM Suite Reaction Control System [Rating: 53] Favorites ----------- Power Micro Nuclear Core Engine Light Ion Engine Power Core Micro Nuclear Core Propulsion Potential Leg Treads Medium Treads Leg Potential Leg Wheel Wheel Hover Unit Gravmag System Flight Unit Flight Unit Utility Structural Scanner Device Structural Scanner Storage Medium Storage Unit Processor Improved Melee Analysis Suite Hackware Hacking Suite Protection Improved Medium Armor Plating Weapon Spear Energy Gun EM Pulse Gun Energy Cannon Plasma Cannon Ballistic Gun Gauss Rifle Ballistic Cannon Advanced Assault Cannon Launcher Mini Grenade Launcher Special Weapon Mining Laser Impact Weapon Great Maul Slashing Weapon Axe Piercing Weapon Spear Special Melee Weapon Datajack Build | -11 -10 -10 -10 -9 -8 -8 -7 -7 -7 -7 ------- Run | Jun Mat Min Exi Min Mat Sto Fac Was Fac Low Slots Evolved 6 | . . . . . 4 . 2 . . . Power 1 | . . . . . 1 . . . . . Propulsion 1 | . . . . . . . 1 . . . Utility 3 | . . . . . 2 . 1 . . . Weapon 1 | . . . . . 1 . . . . . Parts Attached 162 | 9 17 2 5 2 19 9 30 . 66 3 Power 18 | 1 2 . . 1 4 2 1 . 7 . Engine 7 | 1 2 . . 1 2 . 1 . . . Core 11 | . . . . . 2 2 . . 7 . Reactor . | . . . . . . . . . . . Propulsion 42 | 3 2 . 2 . 2 . 14 . 19 . Treads 4 | . . . . . . . 3 . 1 . Leg 10 | . . . 2 . 2 . . . 6 . Wheel 6 | 3 . . . . . . 3 . . . Hover 14 | . . . . . . . 2 . 12 . Flight 8 | . 2 . . . . . 6 . . . Utility 50 | 2 2 . 3 1 8 3 10 . 21 . Device 31 | 1 1 . . 1 1 2 9 . 16 . Storage 4 | 1 . . 2 . 1 . . . . . Processor 10 | . 1 . 1 . 2 1 1 . 4 . Hackware 1 | . . . . . 1 . . . . . Protection 4 | . . . . . 3 . . . 1 . Artifact . | . . . . . . . . . . . Weapon 52 | 3 11 2 . . 5 4 5 . 19 3 Energy Gun 10 | 2 4 . . . . . 2 . 2 . Energy Cannon 4 | . . . . . 2 2 . . . . Ballistic Gun 11 | 1 4 . . . 2 2 2 . . . Ballistic Cannon 1 | . . . . . . . . . 1 . Launcher 5 | . . . . . . . 1 . 3 1 Special Weapon 5 | . 3 1 . . . . . . 1 . Impact Weapon 4 | . . . . . 1 . . . 3 . Slashing Weapon 2 | . . . . . . . . . 2 . Piercing Weapon 9 | . . . . . . . . . 7 2 Special Melee Weapon 1 | . . 1 . . . . . . . . Unidentified Prototypes 1 | . . . 1 . . . . . . . Corrupted Parts 1 | . . . 1 . . . . . . . System Corruption 3 | . . . 3 . . . . . . . Parts Lost 22 | . . 1 . 3 . 7 2 2 5 2 Power 5 | . . . . 1 . 3 . . 1 . Propulsion 4 | . . . . . . 1 1 . 2 . Utility 7 | . . . . . . 2 . 2 1 2 Weapon 6 | . . 1 . 2 . 1 1 . 1 . Highest Loss Streak 6 | . . 1 . 1 . 6 1 2 4 2 To Critical Strikes 1 | . . . . . . 1 . . . . Average Slot Usage (%) 89 | . 99 93 100 96 97 97 70 49 83 96 Engine 5 | . 14 14 14 13 9 5 3 3 . . Core 7 | . . . . . 8 11 . . 12 15 Leg 11 | . . . 24 28 18 17 2 . 10 . Wheel 1 | . 10 . . . . . 5 . . . Hover 3 | . . . . . . . 1 . 8 23 Flight 3 | . 18 28 3 . . . 7 . . . Device 11 | . 25 14 5 12 9 8 15 10 10 11 Storage 3 | . 2 . 8 . 9 9 2 . . . Processor 14 | . . 14 14 15 14 17 15 11 18 23 Protection 1 | . . . . . 3 . . . 2 . Energy Gun 4 | . 14 14 14 13 3 . 2 3 . . Energy Cannon 2 | . . . . . 1 16 1 . . . Ballistic Gun 4 | . 9 4 . . 12 1 4 3 . . Special Weapon 1 | . 3 1 14 11 . . . . . . Impact Weapon 2 | . . . . . 6 8 . . 1 7 Piercing Weapon 3 | . . . . . . . . . 11 13 Naked Turns 224 | . . . . . . . . 42 182 . Heaviest Build 45 | 15 15 7 16 7 45 45 23 14 37 26 Greatest Support 84 | 32 32 8 60 60 60 60 84 84 60 25 Greatest Overweight (x) 2 | . . . . . . . 1 . 2 1 Average Overweight (x) . | . . . . . . . . . . . Largest Inventory Capacity 10 | 8 8 5 10 5 10 10 10 5 5 5 Average Capacity 6 | 7 5 5 8 5 10 10 6 5 5 5 Most Carried 10 | 7 8 5 5 5 10 10 10 5 5 4 Average Carried 5 | 4 5 4 3 3 8 9 5 5 4 4 Final Capacity 10 | 8 5 5 5 5 10 10 5 5 5 5 Final Carried 10 | 7 5 4 4 3 10 10 5 5 5 4 Class Distribution -------------------- 48% | Mutant 22% | Scavenger-Mutant 20% | Assassin Dominant Class ---------------- Scavenger-Mutant | -10/Materials Scavenger-Mutant | -10/Mines Mutant | -10/Exiles Mutant | -9/Mines Assassin | -8/Materials Assassin | -8/Storage Mutant | -7/Factory Mutant | -7/Waste Mutant | -7/Factory Mutant | -7/Lower Caves Resources | -11 -10 -10 -10 -9 -8 -8 -7 -7 -7 -7 ----------- Run | Jun Mat Min Exi Min Mat Sto Fac Was Fac Low Matter Collected 1892 | 290 192 33 . 100 266 110 121 . 676 104 Remotely . | . . . . . . . . . . . Salvage Created 2743 | 73 256 . . 87 589 398 155 . 1026 159 Parts 165 | 4 27 . . 8 18 18 14 . 71 5 Haulers Intercepted 6 | . 1 . . . 2 1 1 . 1 . Recyclers Shooed 2 | . . . . . . . 2 . . . Parts Field Recycled 14 | . . . . . . . . . 14 . Retrieved Matter 267 | . . . . . . . . . 267 . Parts Self-Destructed . | . . . . . . . . . . . Prevented . | . . . . . . . . . . . Kills | -11 -10 -10 -10 -9 -8 -8 -7 -7 -7 -7 ------- Run | Jun Mat Min Exi Min Mat Sto Fac Was Fac Low Combat Hostiles Destroyed 57 | . 6 . . 5 9 7 3 . 24 3 Melee 15 | . . . . . 2 1 . . 11 1 Guns 13 | . 6 . . 4 . . 2 . 1 . Cannons 8 | . . . . . 2 5 . . 1 . AOE 13 | . . . . 1 . . 1 . 11 . Classes Destroyed 19 | 2 4 . . . 5 1 3 . 3 1 Worker 5 | . . . . . . . 1 . 4 . Builder 5 | . . . . . . . 3 . 2 . Tunneler 1 | 1 . . . . . . . . . . Hauler 6 | . 1 . . . 2 1 1 . 1 . Recycler 1 | 1 . . . . . . . . . . Mechanic 2 | . . . . . . . . . 2 . Operator 5 | . 2 . . . 2 . 1 . . . Watcher 4 | . 2 . . . 1 . . . 1 . Swarmer 15 | . 6 . . 5 . . . . 4 . Cutter 2 | . . . . . 2 . . . . . Grunt 10 | . . . . . 2 3 1 . 4 . Brawler 1 | . . . . . 1 . . . . . Duelist 1 | . . . . . . 1 . . . . Protector 1 | . . . . . . . . . 1 . Sentry 6 | . . . . . 3 3 . . . . Specialist 5 | . . . . . . . . . 5 . Hunter 5 | . . . . . 1 . . . 4 . Programmer 8 | . . . . . . . 2 . 6 . Fireman 3 | . . . . . . . . . . 3 Best Kill Streak 15 | 2 3 . . 3 3 2 4 . 15 3 Combat Bots Only 10 | . 3 . . 3 3 2 1 . 10 3 Max Kills in Single Turn 6 | 1 1 . . 1 1 1 3 . 6 1 Gunslinging . | . . . . . . . . . . . Exploded 3 | . . . . 1 . . 1 . 3 . Melee 1 | . . . . . 1 1 . . 1 1 Uniques/NPCs Destroyed . | . . . . . . . . . . . Combat | -11 -10 -10 -10 -9 -8 -8 -7 -7 -7 -7 -------- Run | Jun Mat Min Exi Min Mat Sto Fac Was Fac Low Damage Taken 4319 | . 170 91 . 362 362 1197 308 115 1344 370 Core 1220 | . 44 43 . 106 44 271 191 115 284 122 Absorbed by Shields 17 | . . . . . . . . . 17 . Regen/Repaired (Parts) 14 | . 14 . . . . . . . . . Core Remaining (%) 54 | 100 . . . 22 . 42 . . . . Volleys Fired 171 | 3 46 4 . 27 23 19 34 . 15 . Largest 3 | 2 2 1 . 1 3 2 2 . 2 . Hottest 160 | 100 150 100 . 100 160 160 108 . 128 . Shots Fired 247 | 6 85 4 . 27 35 31 40 . 19 . Gun 173 | 6 77 . . 23 27 5 28 . 7 . Cannon 45 | . . . . . 8 26 6 . 5 . Launcher 13 | . . . . . . . 6 . 7 . Special 16 | . 8 4 . 4 . . . . . . Kinetic 91 | . 48 . . . 19 5 14 . 5 . Thermal 89 | 6 9 4 . 4 16 26 17 . 7 . Explosive 13 | . . . . . . . 6 . 7 . Electromagnetic 54 | . 28 . . 23 . . 3 . . . Robot Hit Streak 9 | 2 5 . . 2 5 9 5 . 4 . Robot Miss Streak 6 | 1 3 . . 6 5 3 4 . 5 . Penetration Max 1 | . . . . . 1 . . . . . Secondary Targets . | . . . . . . . . . . . Shots Hit Robots 183 | 4 40 . . 5 27 33 17 . 46 11 Core Hits 109 | 3 15 . . 5 8 13 12 . 49 4 Critical Kills 4 | . . . . . 2 2 . . . . Critical Parts Destroyed 12 | . . . . . 9 2 . . 1 . Critical Strikes 19 | 1 . . . . 11 4 1 . 2 . Burn 2 | 1 . . . . . . 1 . . . Meltdown 1 | . . . . . 1 . . . . . Destroy 2 | . . . . . 1 1 . . . . Smash 13 | . . . . . 9 3 . . 1 . Impale 1 | . . . . . . . . . 1 . Melee Attacks 146 | . . . . . 37 27 . . 66 16 Impact 91 | . . . . . 37 27 . . 16 11 Slashing 20 | . . . . . . . . . 20 . Piercing 35 | . . . . . . . . . 30 5 Sneak Attacks 7 | . . . . . 3 . . . 4 . Combat Hostiles . | . . . . . . . . . . . Follow-up Attacks 12 | . . . . . . . . . 8 4 Damage Inflicted 7507 | 50 445 . . 125 924 1000 1062 . 3362 539 Guns 1129 | 50 445 . . 75 150 36 276 . 97 . Cannons 822 | . . . . . 156 537 79 . 50 . Explosions 2305 | . . . . 50 . . 707 . 1548 . Melee 3251 | . . . . . 618 427 . . 1667 539 Ramming . | . . . . . . . . . . . Kinetic 591 | . 219 . . . 140 36 146 . 50 . Thermal 1589 | 50 . . . 50 166 537 689 . 97 . Explosive 1738 | . . . . . . . 190 . 1548 . Electromagnetic 338 | . 226 . . 75 . . 37 . . . Impact 1983 | . . . . . 618 427 . . 492 446 Slashing 721 | . . . . . . . . . 721 . Piercing 547 | . . . . . . . . . 454 93 Highest Corruption 6 | . 3 3 6 6 . 5 1 . 1 . Average Corruption 3 | . 2 3 3 6 . 2 1 . 1 . Corruption Purged 2 | . . . . . . . 1 . 1 . Corruption Blocked . | . . . . . . . . . . . Effects 22 | . 2 4 8 7 . . 1 . . . Message Errors 5 | . . . 3 2 . . . . . . Matter Fused 6 | . 2 1 2 . . . 1 . . . Heat Flow Errors 4 | . . 1 . 3 . . . . . . Energy Discharges 5 | . . 1 2 2 . . . . . . Parts Fused 1 | . . . 1 . . . . . . . Data Loss (major) 1 | . . 1 . . . . . . . . Overload Shots . | . . . . . . . . . . . Overflow Damage 1204 | . . . . . 522 95 171 . 371 45 Projectiles . | . . . . . . . . . . . Explosions 197 | . . . . . . . 171 . 26 . Melee 1007 | . . . . . 522 95 . . 345 45 Knockbacks 8 | . . . . . 2 2 . . 3 1 Impact 7 | . . . . . 2 2 . . 2 1 Kinetic 1 | . . . . . . . . . 1 . Secondary . | . . . . . . . . . . . Self-Inflicted Damage 70 | . . . . . . . . . 70 . Shots 2 | . . . . . . . . . 2 . Rammed . | . . . . . . . . . . . Targets Rammed . | . . . . . . . . . . . Kicked . | . . . . . . . . . . . Crushed . | . . . . . . . . . . . Highest Temperature 299 | 78 130 274 . 190 246 299 60 . 114 70 Average Temperature 67 | 37 31 98 . 83 89 117 23 . 33 34 Received Heat Transfer 1020 | . 18 18 . . 72 270 63 . 62 517 Siege Activations . | . . . . . . . . . . . Robots Corrupted . | . . . . . . . . . . . Combat Hostiles . | . . . . . . . . . . . Parts Fried 19 | . 3 . . . 13 2 . . 1 . Impact Corruptions 31 | . . . . . 17 3 . . 9 2 Robots Melted 1 | . . . . . 1 . . . . . Combat Hostiles . | . . . . . . . . . . . Parts Melted 7 | . . . . . 2 1 4 . . . Heat Transferred 2644 | 222 . . . 100 337 988 772 . 225 . Parts Sabotaged . | . . . . . . . . . . . Parts Stolen . | . . . . . . . . . . . Parts Stripped . | . . . . . . . . . . . Power Chain Reactions . | . . . . . . . . . . . Missiles Intercepted . | . . . . . . . . . . . Alert | -11 -10 -10 -10 -9 -8 -8 -7 -7 -7 -7 ------- Run | Jun Mat Min Exi Min Mat Sto Fac Was Fac Low Peak Influence 433 | 10 244 123 . 164 223 367 385 128 433 . Initial 126 | . 6 86 . . 63 68 126 108 82 . Average 147 | 3 113 91 . 78 83 143 269 113 174 . Maximum Alert Level 2 | . 1 . . . 1 1 1 . 2 . Low Security (%) 67 | 100 74 100 . 100 99 73 16 100 50 . Level 1 28 | . 25 . . . . 26 83 . 37 . Level 2 4 | . . . . . . . . . 11 . Level 3 . | . . . . . . . . . . . Level 4 . | . . . . . . . . . . . Level 5 . | . . . . . . . . . . . High Security . | . . . . . . . . . . . Max Security . | . . . . . . . . . . . Squads Dispatched 25 | . 2 . . . 4 3 4 . 12 . Investigation 6 | . 1 . . . 2 . . . 3 . Extermination 7 | . . . . . . . 2 . 5 . Reinforcement 10 | . 1 . . . 2 1 2 . 4 . Assault 2 | . . . . . . 2 . . . . Garrison . | . . . . . . . . . . . Intercept . | . . . . . . . . . . . Searches Triggered . | . . . . . . . . . . . Construction Impeded 1 | . . . . . . . . . 1 . Haulers Reinforced . | . . . . . . . . . . . Active Scanning Responses . | . . . . . . . . . . . Cargo Convoy Interrupts 1 | . . . . . . . . . 1 . Stealth | -11 -10 -10 -10 -9 -8 -8 -7 -7 -7 -7 --------- Run | Jun Mat Min Exi Min Mat Sto Fac Was Fac Low Distress Signals 6 | . 1 . . . 2 1 2 . . . Communications Jammed . | . . . . . . . . . . . Distress Signals . | . . . . . . . . . . . Times Spotted 140 | . 15 7 . 9 28 25 12 6 34 4 Peak Tracking Total 12 | . 3 3 . 4 9 10 8 6 12 4 Tactical Retreats 21 | . 3 1 . 2 5 4 4 1 1 . Traps | -11 -10 -10 -10 -9 -8 -8 -7 -7 -7 -7 ------- Run | Jun Mat Min Exi Min Mat Sto Fac Was Fac Low Traps Triggered 10 | . 3 . . . 1 . 2 . 4 . Indirectly . | . . . . . . . . . . . Trap Hack Attempts . | . . . . . . . . . . . Triggered . | . . . . . . . . . . . Disarmed . | . . . . . . . . . . . Reprogrammed . | . . . . . . . . . . . Reused . | . . . . . . . . . . . Traps Extracted . | . . . . . . . . . . . Installed . | . . . . . . . . . . . Triggered . | . . . . . . . . . . . Machines | -11 -10 -10 -10 -9 -8 -8 -7 -7 -7 -7 ---------- Run | Jun Mat Min Exi Min Mat Sto Fac Was Fac Low Machines Disabled 15 | . 1 . . 1 . 3 8 . 2 . Max in Single Turn 8 | . 1 . . 1 . 1 8 . 2 . Garrison Access 1 | . . . . . . 1 . . . . Machines Repaired . | . . . . . . . . . . . Machines Sabotaged . | . . . . . . . . . . . Overloaded Fab Kills . | . . . . . . . . . . . Hacking | -11 -10 -10 -10 -9 -8 -8 -7 -7 -7 -7 --------- Run | Jun Mat Min Exi Min Mat Sto Fac Was Fac Low Machines Accessed 39 | . 9 . . . 10 6 3 . 11 . Terminals 29 | . 7 . . . 7 5 3 . 7 . Fabricators 2 | . . . . . . . . . 2 . Repair Stations 2 | . 1 . . . 1 . . . . . Recycling Units 2 | . 1 . . . 1 . . . . . Scanalyzers 3 | . . . . . 1 . . . 2 . Garrison Access 1 | . . . . . . 1 . . . . Total Hacks 102 | . 18 . . . 29 17 8 . 30 . Successful 49 | . 9 . . . 13 9 2 . 16 . Failed 53 | . 9 . . . 16 8 6 . 14 . Catastrophic 11 | . 3 . . . 3 1 1 . 3 . Database Lockouts . | . . . . . . . . . . . Manual 29 | . 2 . 1 . 3 11 4 . 8 . Terminals 72 | . 15 . . . 16 16 8 . 17 . Fabricators 4 | . . . . . . . . . 4 . Repair Stations 5 | . 2 . . . 3 . . . . . Recycling Units 2 | . 1 . . . 1 . . . . . Scanalyzers 18 | . . . . . 9 . . . 9 . Garrison Access 1 | . . . . . . 1 . . . . Terminal Hacks 25 | . 6 . . . 3 8 2 . 6 . Record 2 | . . . . . . 1 . . 1 . Prototype ID Bank 3 | . 2 . . . . . . . 1 . Branch Access Points 3 | . . . . . 1 1 . . 1 . Emergency Access Points 1 | . . . . . . . 1 . . . Terminal Index 4 | . 1 . . . . 1 1 . 1 . Scanalyzer Index 1 | . . . . . . 1 . . . . Alert Level 4 | . 1 . . . 1 1 . . 1 . Locate Traps 3 | . 1 . . . 1 . . . 1 . Dispatch Records 1 | . . . . . . 1 . . . . Hauler Manifests 1 | . . . . . . 1 . . . . Zone Layout 2 | . 1 . . . . 1 . . . . Fabricator Hacks 4 | . . . . . . . . . 4 . Network Status 1 | . . . . . . . . . 1 . Load Schematic 1 | . . . . . . . . . 1 . Build 2 | . . . . . . . . . 2 . Repair Station Hacks 3 | . 2 . . . 1 . . . . . Scan Component 1 | . 1 . . . . . . . . . Repair 1 | . 1 . . . . . . . . . Refit 1 | . . . . . 1 . . . . . Recycling Unit Hacks 2 | . 1 . . . 1 . . . . . Report Inventory 2 | . 1 . . . 1 . . . . . Scanalyzer 14 | . . . . . 8 . . . 6 . Insert Component 7 | . . . . . 4 . . . 3 . Analyze 7 | . . . . . 4 . . . 3 . Garrison Access Hacks 1 | . . . . . . 1 . . . . Seal Access 1 | . . . . . . 1 . . . . Unauthorized Hacks . | . . . . . . . . . . . Terminals . | . . . . . . . . . . . Fabricators . | . . . . . . . . . . . Repair Stations . | . . . . . . . . . . . Recycling Units . | . . . . . . . . . . . Scanalyzers . | . . . . . . . . . . . Garrison Access . | . . . . . . . . . . . Data Cores Recovered 2 | . 1 . . . 1 . . . . . Used . | . . . . . . . . . . . Hacking Detections 34 | . 8 . . . 7 6 3 . 10 . Full Trace Events 3 | . . . . . . . . . 3 . Feedback Events . | . . . . . . . . . . . Feedback Blocked . | . . . . . . . . . . . Robot Schematics Acquired . | . . . . . . . . . . . Robots Built 1 | . . . . . . . . . 1 . Authchips . | . . . . . . . . . . . Time 134 | . . . . . . . . . 134 . Total Robot Build Rating 4 | . . . . . . . . . 4 . Part Schematics Acquired 5 | . . . . . 3 . . . 2 . Parts Built 2 | . . . . . . . . . 2 . Authchips . | . . . . . . . . . . . Time 51 | . . . . . . . . . 51 . Total Part Build Rating 2 | . . . . . . . . . 2 . Parts Repaired 1 | . 1 . . . . . . . . . Time 26 | . 26 . . . . . . . . . Parts Recycled . | . . . . . . . . . . . Recycled Matter . | . . . . . . . . . . . Retrieved Matter . | . . . . . . . . . . . Retrieved Components . | . . . . . . . . . . . Parts Scanalyzed 5 | . . . . . 3 . . . 2 . Part Schematics Acquired 5 | . . . . . 3 . . . 2 . Parts Damaged . | . . . . . . . . . . . Bothacking | -11 -10 -10 -10 -9 -8 -8 -7 -7 -7 -7 ------------ Run | Jun Mat Min Exi Min Mat Sto Fac Was Fac Low Used RIF Installer . | . . . . . . . . . . . Robots Hacked . | . . . . . . . . . . . Non-combat . | . . . . . . . . . . . Combat . | . . . . . . . . . . . Robot Hacks Applied . | . . . . . . . . . . . Relay Couplers Released . | . . . . . . . . . . . Fabnet Peak Effective % . | . . . . . . . . . . . Robots Rewired . | . . . . . . . . . . . Allies Hacked . | . . . . . . . . . . . Hacks Repelled . | . . . . . . . . . . . Allies | -11 -10 -10 -10 -9 -8 -8 -7 -7 -7 -7 -------- Run | Jun Mat Min Exi Min Mat Sto Fac Was Fac Low Total Allies 3 | . . . . . . 2 . . 1 . Largest Group 2 | . . . . . . 2 . . 1 . Highest-Rated Group 62 | . . . . . . 62 . . 40 . Highest-Rated Ally 40 | . . . . . . 31 . . 40 . Total Orders 2 | . . . . . . . . . 2 . STAY 1 | . . . . . . . . . 1 . FOLLOW 1 | . . . . . . . . . 1 . Ally Attacks 17 | . . . . . . 17 . . . . Total Damage 295 | . . . . . . 295 . . . . Kills 2 | . . . . . . 2 . . . . Allies Corrupted . | . . . . . . . . . . . Allies Melted . | . . . . . . . . . . . Intel | -11 -10 -10 -10 -9 -8 -8 -7 -7 -7 -7 ------- Run | Jun Mat Min Exi Min Mat Sto Fac Was Fac Low Robot Analysis Total . | . . . . . . . . . . . Derelict Logs Recovered 3 | . . 2 . 1 . . . . . . Drone Launches . | . . . . . . . . . . . Drone Recoveries . | . . . . . . . . . . . Exploration | -11 -10 -10 -10 -9 -8 -8 -7 -7 -7 -7 ------------- Run | Jun Mat Min Exi Min Mat Sto Fac Was Fac Low Turns Passed 6556 | 89 631 202 361 268 1293 617 776 149 2111 59 Spaces Moved 6642 | 67 816 495 465 201 1121 516 702 189 2025 45 Core 832 | 11 . . . . . . 222 146 453 . Treads 174 | . . . . . . . 63 43 68 . Legs 2748 | . . . 334 201 1121 516 154 . 422 . Wheels 441 | 56 202 . . . . . 183 . . . Hover 1156 | . . . . . . . 29 . 1082 45 Flight 1291 | . 614 495 131 . . . 51 . . . Fastest Speed 29 | 50 37 37 37 90 45 45 29 50 42 42 Average Speed 72 | 84 52 37 75 90 83 83 75 75 75 44 Slowest Speed 240 | 100 100 37 90 90 90 90 160 160 240 102 Overloaded Moves 226 | . . . . . 150 76 . . . . Propulsion Burnouts . | . . . . . . . . . . . Robots Hopped 7 | . 2 5 . . . . . . . . Cave-ins Triggered . | . . . . . . . . . . . Exploration Rate (%) 55 | 4 93 93 93 40 65 68 23 86 36 12 Regions Visited 10 Branch Regions 5 Pre-discovered Areas 1 | . . 1 . . . . . . . . Known Exits Taken 7 | . 1 1 1 1 1 1 . . 1 . Unknown Exits Taken 1 | 1 . . . . . . . . . . Scrap Searched 3 | . . 1 . 1 . . . . . 1 Spaces Dug 58 | . 8 4 . 4 20 8 . . 14 . Terrain Destroyed 218 | . 8 4 . 18 23 13 44 . 108 . Melee 41 | . . . . . 20 8 . . 13 . Projectile 26 | . 8 4 . 4 3 5 . . 2 . AOE 151 | . . . . 14 . . 44 . 93 . Terrain Rammed . | . . . . . . . . . . . Walls Destroyed . | . . . . . . . . . . . Machines Disabled . | . . . . . . . . . . . Actions | -11 -10 -10 -10 -9 -8 -8 -7 -7 -7 -7 --------- Run | Jun Mat Min Exi Min Mat Sto Fac Was Fac Low Total 7893 | 93 924 496 479 253 1369 616 917 199 2486 61 Wait 596 | . 22 . . 22 127 35 105 4 279 2 Move 6620 | 66 812 484 464 200 1120 515 702 188 2024 45 Hop 6 | . 1 5 . . . . . . . . Pick Up 110 | 14 10 . 4 1 25 5 25 . 26 . Fast Attach 35 | . 5 1 . . 2 1 3 . 23 . Attach 63 | 8 . 1 4 2 9 1 23 . 14 1 Detach 10 | 1 1 . 2 . 3 . 2 . 1 . Swap 64 | 1 12 . 1 . 8 7 4 . 29 2 Drop 95 | . 15 1 4 1 15 6 19 7 27 . Fire 171 | 3 46 4 . 27 23 19 34 . 15 . Melee 123 | . . . . . 37 27 . . 48 11 Ram . | . . . . . . . . . . . Kick . | . . . . . . . . . . . Crush . | . . . . . . . . . . . Escape Stasis . | . . . . . . . . . . . Rewire . | . . . . . . . . . . . Trap . | . . . . . . . . . . . Miscellaneous . | . . . . . . . . . . . Route ------- -11/Junkyard -10/Materials (discovered 4 exits: *Mat x3 / *Min) -10/Mines (discovered 3 exits: *Mat x2 / *Exi) -10/Exiles (discovered 2 exits: *Min x2) -9/Mines -8/Materials (discovered 3 exits: *Fac x2 / *Sto) -8/Storage (discovered 2 exits: *Fac / Rec) -7/Factory -7/Waste -7/Factory (discovered 2 exits: *Low x2) -7/Lower Caves History --------- Turn | Location | Event 3 | -11/Junkyard | Discovered new exit (range 15) 90 | -11/Junkyard | Entered Materials 201 | -10/Materials | Discovered new exit (range 13) 316 | -10/Materials | Discovered new exit (range 13) 374 | -10/Materials | Repaired Mining Laser? 563 | -10/Materials | Discovered new exit (range 8) 592 | -10/Materials | Build established: Scavenger-Mutant 659 | -10/Materials | Discovered new exit (range 16) 688 | -10/Materials | Identified exit to Materials 720 | -10/Materials | Identified exit to Mines 721 | -10/Materials | Entered Mines 737 | -10/Mines | Discovered exit to Materials (range 13) 772 | -10/Mines | Found a hidden stash of uninstalled traps 796 | -10/Mines | Learned location of Storage (-8) 796 | -10/Mines | Discovered exit to Materials (range 5) 800 | -10/Mines | Assembled infested the area 872 | -10/Mines | Deemed a non-threat by the Exiles lab entrance 872 | -10/Mines | Discovered new exit (range 5) 873 | -10/Mines | Identified exit to Exiles 923 | -10/Mines | Entered Exiles 924 | -10/Exiles | Identified exit to Mines 938 | -10/Exiles | Met 8R-AWN 944 | -10/Exiles | Met EX-HEX 955 | -10/Exiles | Met EX-BIN 961 | -10/Exiles | Aligned with FarCom system 961 | -10/Exiles | Given EX-Vault access code 970 | -10/Exiles | Opened EX-Vault 972 | -10/Exiles | Found Prototype Leg 974 | -10/Exiles | Identified Potential Leg 976 | -10/Exiles | Found Potential Leg 1015 | -10/Exiles | Warned to stay clear of 0b10 Research branches 1105 | -10/Exiles | Visited The Gauntlet 1204 | -10/Exiles | Met EX-DEC 1277 | -10/Exiles | Build established: Mutant 1284 | -10/Exiles | Left Exiles lab with Potential Leg 1284 | -10/Exiles | Entered Mines 1300 | -9/Mines | Core integrity fell below 50% 1336 | -9/Mines | Learned Materials terminal intel 1495 | -9/Mines | Discovered new exit (range 9) 1502 | -9/Mines | Identified exit to Materials 1552 | -9/Mines | Entered Materials 1552 | -8/Materials | Evolved 4 slots: Power x1, Utility x2, Weapon x1 1553 | -8/Materials | Loaded intel: 12 terminal locations 1692 | -8/Materials | Discovered new exit (range 8) 1701 | -8/Materials | Identified exit to Factory 2426 | -8/Materials | Build established: Assassin 2651 | -8/Materials | Discovered exit to Factory (range 8) 2658 | -8/Materials | Identified exit to Storage 2845 | -8/Materials | Entered Storage 3332 | -8/Storage | Identified exit to Recycling 3403 | -8/Storage | Discovered exit to Factory (range 17) 3415 | -8/Storage | Met a pair of Derelict thieves 3461 | -8/Storage | Core integrity fell below 50% 3462 | -8/Storage | Entered Factory 3462 | -7/Factory | Evolved 2 slots: Propulsion x1, Utility x1 3490 | -7/Factory | Lost 6 parts (2p1n2u1w) 4140 | -7/Factory | Discovered new exit (range 16) 4238 | -7/Factory | Sucked down chute 4238 | -7/Factory | Entered Waste 4251 | -7/Waste | Spotted C-40 Crusher 4288 | -7/Waste | Spotted C-40 Crusher 4316 | -7/Waste | Spotted C-40 Crusher 4317 | -7/Waste | Spotted C-40 Crusher 4327 | -7/Waste | Spotted C-40 Crusher 4332 | -7/Waste | Crushed by Compactor (1 part destroyed, 1 dropped) 4339 | -7/Waste | Spotted C-40 Crusher 4345 | -7/Waste | Crushed by Compactor (1 part destroyed, 1 dropped) 4349 | -7/Waste | Discovered new exit (range 16) 4387 | -7/Waste | Entered Factory 4661 | -7/Factory | Build established: Mutant 5004 | -7/Factory | Core integrity fell below 50% 5304 | -7/Factory | Fabricated I-36 Angel (x1) 5358 | -7/Factory | Fabricated Structural Scanner (x2) 5425 | -7/Factory | Cargo convoy interrupted 5502 | -7/Factory | Lost 4 parts (1p2n1w) 5503 | -7/Factory | Destroyed 10 combat bots 5745 | -7/Factory | Build established: Scavenger-Mutant 6425 | -7/Factory | Identified exit to Lower Caves 6496 | -7/Factory | Core integrity fell below 20% 6498 | -7/Factory | Entered Lower Caves 6512 | -7/Lower Caves | Ambushed by wild Derelicts 6557 | -7/Lower Caves | Destroyed by 5O-C87(g) with Beamcaster Last Messages --------------- out here and collect 'em!" XZ-6IS(i) springs to life. XZ-6IS(i) destroyed. Critical hit (Burn: +80). Spear follow-up attack on Q5-2RS(i). Q5-2RS(i) knocked back. Acquired 52 matter. Destroyed Lgt. Nuclear Core. Q5-2RS(i) system corrupted by crushing effect. Q5-2RS(i) system terminally corrupted. Critical hit (Burn: +80). Reaction Control System destroyed. Critical hit (Burn: +37). Spear follow-up attack on QU-E61(i). Structural Scanner destroyed. Destroyed Flamer. QU-E61(i) system corrupted by crushing effect. QU-E61(i) system terminally corrupted. Acquired 52 matter. Spear follow-up attack on 5O-C87(g). Map ----- +----------------------------------------------------+ | ?????????????????????????????????????????????????? | | ?????????????????????????????????????????????????? | | ?????????????????????????????????????????????????? | | ?????????????????????????????????????????????????? | | ?????????????????????????????????????????????????? | | ?????????????????????????????????????????????????? | | ?????????????????????????????????????????????????? | | ?????????????????????????????????????????????????? | | ??????????????????????????????????#####??????????? | | ????????????????????????????#####?#####??????????? | | ???????????????????????????? ####?# ????????? # | | ???????????????????????????? ?? ?????????? # | | ???????????????????????###??# ? ???????? # | | ???????????????????????###??## ##?## ##?????? # | | ???????????????????? #### ## ##?## ####### | | ??????????????????? ### # #### ##### ####### ? | | ???????????????????### ## ### ##### ? | | ???????????????????## ## # #### " | | ???????????????????## #### " ?? | | ???????????????????## """ | | ???????????????????## ## %!#####%! """""" | | ???????????????????## ###!*###### ] """" | | ???????????????????### ### =###?## " | | ???????????????????### =####### """"" " | | ????????????????????### ######## """""" | | ????????????????????### @ ###### " """ | | ?????????????????????## g##### " | | ?????????????????????### ###### """" | | ?????????????????????######?## """ | | ??????????????????????####??### ## " | | ????????????????????????????######### | | ?????????????????????????????############ ##### | | ???????????????????????????????????##### #### | | ?????????????????????????????????????## ### | | ?????????????????????????????????????## ##### | | ????????????????????????????????????### ####### | | ????????????????????????????????????## ###?### | | ???????????????????????????????????? ???## | | ?????????????????????????????????## ????# | | ?????????????????????????????????## ##????? | | ?????????????????????????????????############????? | | ?????????????????????????????????############????? | | ?????????????????????????????????????????????????? | | ?????????????????????????????????????????????????? | | ?????????????????????????????????????????????????? | | ?????????????????????????????????????????????????? | | ?????????????????????????????????????????????????? | | ?????????????????????????????????????????????????? | | ?????????????????????????????????????????????????? | | ?????????????????????????????????????????????????? | +----------------------------------------------------+ Best States ------------- Heat Dissipation 61 Energy Generation 25 Energy Capacity 415 Matter Stores 300 Matter Capacity 300 Sight Range 20 Terrain Scan Density 10 ECM Strength 2 Armor Coverage 225 Propulsion Shielding 66 Evasion (%) 66 Melee Accuracy 12 Core Analysis 6 Recoil Reduction 3 Offensive Hacking 10 Item Schematics ----------------- Hacking Suite | -8/Materials | Scanalyzed Structural Scanner | -8/Materials | Scanalyzed Imp. Light Armor Plating | -8/Materials | Scanalyzed System Restoration Module | -7/Factory | Scanalyzed Cld. Airjet | -7/Factory | Scanalyzed Robot Schematics ------------------ None Fabricated ------------ I-36 Angel | x1 | -7/Factory | Preloaded Structural Scanner | x2 | -7/Factory Alien Tech Used ----------------- None Achievements -------------- None Challenges ------------ None Game ------ Seed MediumIonMeganuke Manual? 0 Play Time 03:14:17 Cumulative 45.1 hours Start 2023.06.26 @ 17:20:28 End 2023.06.26 @ 22:52:44 Sessions 1 Manual Loads 0 Difficulty Rogue Special Mode None Game No. 14 Rogue 12 Adventurer 1 Explorer 1 Win Type - Total 1 Types 1/0/0/0/0/0/0/0/0 Lore% 20 Gallery% 36 Achievement% 33 Wizard Run 0 Options --------- ASCII 0 Keyboard 0 Movement Mouse Keybinds 0 Fullscreen 1 Font 18/SmallcapsGlow Map View 76x50 Tactical HUD 0 Map Filters NONE Filters NONE Steam 1 RUN: c1357201-0e22-4727-b8b7-c9619b95c01d